fUSD/lending_fUSD_20251222
["ID","MTS","AMOUNT","RATE_DAILY","PERIOD"]
[399479925,1766412632421,-1123.04045911,0.00015592,2]
[399479926,1766412632433,-609.653476,0.00015592,2]
[399479927,1766412632444,-4402.16735575,0.00015592,2]
[399479928,1766412632456,-4104.99362274,0.00015592,2]
[399479929,1766412632467,-4573.2,0.00015592,2]
[399479930,1766412632478,-1148.21986739,0.00015592,2]
[399479931,1766412632497,-65070.31282698,0.00015592,2]
[399479932,1766412632509,-12477.0552713,0.00015592,2]
[399479933,1766412638274,-1000.0,0.00015592,2]
[399479934,1766412638347,-60586.15097523,0.00015592,2]
[399479935,1766412638359,-1134.22,0.00015592,2]
[399479936,1766412638403,-771.65510317,0.00015592,2]
[399479937,1766412638415,-642.76071279,0.00015592,2]
[399479938,1766412638463,-25269.70642422,0.00015592,2]
[399479975,1766412640461,-4809.96,0.00015582,2]
[399479976,1766412640475,-780018.33522156,0.00015592,2]
[399479977,1766412640486,-384.0,0.00015645,2]
[399479978,1766412640496,-346.36178232,0.00015646,2]
[399479979,1766412640506,-578.20924308,0.00015656,2]
[399479980,1766412640517,-194.72792766,0.00015656,2]
[399479981,1766412640527,-293.12,0.00015672,2]
[399479982,1766412640538,-322.6107,0.00015683,2]
[399479983,1766412640549,-200.0,0.00015692,2]
[399479984,1766412640559,-250.0,0.00015692,2]
[399479985,1766412640883,-307.69243977,0.00015692,2]
[399479986,1766412640895,-151.0,0.00015692,2]
[399479987,1766412640905,-670.58624095,0.00015692,2]
[399479988,1766412640916,-250.0,0.00015692,2]
[399479989,1766412640926,-500.0,0.00015692,2]
[399479990,1766412640937,-151.0,0.00015692,2]
[399479991,1766412640947,-250.0,0.00015692,2]
[399479992,1766412640957,-500.0,0.00015692,2]
[399479993,1766412640978,-151.0,0.00015692,2]
[399479994,1766412640990,-250.0,0.00015692,2]
[399479995,1766412641001,-151.0,0.00015692,2]
[399479996,1766412641013,-500.0,0.00015692,2]
[399479997,1766412641024,-250.0,0.00015692,2]
[399479998,1766412641035,-151.0,0.00015692,2]
[399479999,1766412641048,-500.0,0.00015692,2]
[399480000,1766412641058,-250.0,0.00015692,2]
[399480001,1766412641069,-151.0,0.00015692,2]
[399480002,1766412641080,-533.88981491,0.00015692,2]
[399480003,1766412641091,-500.0,0.00015692,2]
[399480004,1766412641101,-250.0,0.00015692,2]
[399480005,1766412641112,-151.0,0.00015692,2]
[399480006,1766412641122,-500.0,0.00015692,2]
[399480007,1766412641132,-250.0,0.00015692,2]
[399480008,1766412641143,-151.0,0.00015692,2]
[399480009,1766412641154,-500.0,0.00015692,2]
[399480010,1766412641164,-250.0,0.00015692,2]
[399480011,1766412641175,-151.0,0.00015692,2]
[399480012,1766412641186,-500.0,0.00015692,2]
[399480013,1766412641197,-250.0,0.00015692,2]
[399480014,1766412641207,-151.0,0.00015692,2]
[399480015,1766412641217,-500.0,0.00015692,2]
[399480016,1766412641228,-250.0,0.00015692,2]
[399480017,1766412641239,-151.0,0.00015692,2]
[399480018,1766412641249,-500.0,0.00015692,2]
[399480019,1766412641260,-250.0,0.00015692,2]
[399480020,1766412641271,-151.0,0.00015692,2]
[399480021,1766412641282,-200.0,0.00015692,2]
[399480022,1766412641293,-500.0,0.00015692,2]
[399480023,1766412641305,-250.0,0.00015692,2]
[399480024,1766412641315,-151.0,0.00015692,2]
[399480025,1766412641326,-442.05511688,0.00015692,2]
[399480026,1766412641336,-151.0,0.00015692,2]
[399480027,1766412641347,-250.0,0.00015692,2]
[399480028,1766412641357,-250.0,0.00015692,2]
[399480029,1766412641371,-250.0,0.00015692,2]
[399480030,1766412641382,-500.0,0.00015692,2]
[399480031,1766412641393,-250.0,0.00015692,2]
[399480032,1766412641403,-250.0,0.00015692,2]
[399480033,1766412641414,-250.0,0.00015692,2]
[399480034,1766412641425,-250.0,0.00015692,2]
[399480035,1766412641436,-500.0,0.00015692,2]
[399480036,1766412641446,-250.0,0.00015692,2]
[399480037,1766412641456,-500.0,0.00015692,2]
[399480038,1766412641467,-250.0,0.00015692,2]
[399480039,1766412641477,-250.0,0.00015692,2]
[399480040,1766412641488,-500.0,0.00015692,2]
[399480041,1766412641500,-250.0,0.00015692,2]
[399480042,1766412641511,-250.0,0.00015692,2]
[399480043,1766412641523,-500.0,0.00015692,2]
[399480044,1766412641534,-250.0,0.00015692,2]
[399480045,1766412641544,-250.0,0.00015692,2]
[399480046,1766412641555,-500.0,0.00015692,2]
[399480047,1766412641565,-250.0,0.00015692,2]
[399480048,1766412641580,-250.0,0.00015692,2]
[399480049,1766412641591,-250.0,0.00015692,2]
[399480050,1766412641602,-500.0,0.00015692,2]
[399480051,1766412641612,-250.0,0.00015692,2]
[399480052,1766412641623,-250.0,0.00015692,2]
[399480053,1766412641633,-500.0,0.00015692,2]
[399480054,1766412641643,-250.0,0.00015692,2]
[399480055,1766412641653,-250.0,0.00015692,2]
[399480056,1766412641663,-500.0,0.00015692,2]
[399480057,1766412641673,-250.0,0.00015692,2]
[399480058,1766412641684,-250.0,0.00015692,2]
[399480059,1766412641697,-500.0,0.00015692,2]
[399480060,1766412641707,-250.0,0.00015692,2]
[399480061,1766412641718,-250.0,0.00015692,2]
[399480062,1766412641729,-500.0,0.00015692,2]
[399480063,1766412641740,-250.0,0.00015692,2]
[399480064,1766412641750,-500.0,0.00015692,2]
[399480065,1766412641763,-200.0,0.00015692,2]
[399480066,1766412641774,-250.0,0.00015692,2]
[399480067,1766412641788,-500.0,0.00015692,2]
[399480068,1766412641800,-500.0,0.00015692,2]
[399480069,1766412641811,-500.0,0.00015692,2]
[399480070,1766412641822,-500.0,0.00015692,2]
[399480071,1766412641833,-500.0,0.00015692,2]
[399480072,1766412641844,-500.0,0.00015692,2]
[399480073,1766412641855,-500.0,0.00015692,2]
[399480074,1766412641866,-500.0,0.00015692,2]
[399480075,1766412641877,-500.0,0.00015692,2]
[399480076,1766412641888,-500.0,0.00015692,2]
[399480077,1766412641899,-500.0,0.00015692,2]
[399480078,1766412641909,-500.0,0.00015692,2]
[399480079,1766412641920,-500.0,0.00015692,2]
[399480080,1766412641931,-500.0,0.00015692,2]
[399480081,1766412641942,-500.0,0.00015692,2]
[399480082,1766412641953,-500.0,0.00015692,2]
[399480083,1766412641964,-500.0,0.00015692,2]
[399480084,1766412641975,-500.0,0.00015692,2]
[399480085,1766412641986,-151.0,0.00015692,2]
[399480086,1766412641997,-500.0,0.00015692,2]
[399480087,1766412642008,-500.0,0.00015692,2]
[399480088,1766412642022,-500.0,0.00015692,2]
[399480089,1766412642033,-500.0,0.00015692,2]
[399480090,1766412642044,-500.0,0.00015692,2]
[399480091,1766412642056,-500.0,0.00015692,2]
[399480092,1766412642067,-500.0,0.00015692,2]
[399480093,1766412642078,-500.0,0.00015692,2]
[399480094,1766412642089,-500.0,0.00015692,2]
[399480095,1766412642100,-500.0,0.00015692,2]
[399480096,1766412642111,-620.0,0.00015692,2]
[399480097,1766412642122,-250.0,0.00015692,2]
[399480098,1766412642133,-250.0,0.00015692,2]
[399480099,1766412642144,-250.0,0.00015692,2]
[399480100,1766412642155,-250.0,0.00015692,2]
[399480101,1766412642166,-250.0,0.00015692,2]
[399480102,1766412642177,-250.0,0.00015692,2]
[399480103,1766412642187,-250.0,0.00015692,2]
[399480104,1766412642199,-250.0,0.00015692,2]
[399480105,1766412642209,-250.0,0.00015692,2]
[399480106,1766412642220,-250.0,0.00015692,2]
[399480107,1766412642234,-250.0,0.00015692,2]
[399480108,1766412642244,-250.0,0.00015692,2]
[399480109,1766412642255,-250.0,0.00015692,2]
[399480110,1766412642266,-150.0,0.00015701,2]
[399480111,1766412642277,-151.0,0.0001576,2]
[399480112,1766412642287,-151.0,0.00015772,2]
[399480113,1766412642297,-2242.01,0.00015884,2]
[399480114,1766412642308,-935.0,0.00015884,2]
[399480115,1766412642318,-531.25264543,0.0001591,2]
[399480116,1766412642329,-1047.0,0.00015928,2]
[399480117,1766412642340,-151.47080458,0.00015933,2]
[399480118,1766412642350,-4684.0,0.0001594,2]
[399480119,1766412642362,-612.0,0.00016182,2]
[399480120,1766412642373,-1609.0,0.00016182,2]
[399480121,1766412642384,-1326.0,0.00016182,2]
[399480122,1766412642394,-3457.0,0.00016182,2]
[399480123,1766412642405,-518.0,0.00016182,2]
[399480124,1766412642416,-1262.0,0.00016182,2]
[399480125,1766412642427,-2429.0,0.00016182,2]
[399480126,1766412642439,-564.0,0.00016182,2]
[399480127,1766412642450,-201.93286099,0.00016204,2]
[399480128,1766412642460,-553.64373807,0.0001624,2]
[399480129,1766412642471,-200.0,0.0001624,2]
[399480130,1766412642482,-200.0,0.0001624,2]
[399480131,1766412642492,-151.0,0.0001624,2]
[399480132,1766412642502,-500.0,0.0001624,2]
[399480133,1766412642513,-500.0,0.00016438,2]
[399480134,1766412642524,-500.0,0.00016438,2]
[399480135,1766412642536,-500.0,0.00016438,2]
[399480136,1766412642547,-500.0,0.00016438,2]
[399480137,1766412642558,-500.0,0.00016438,2]
[399480138,1766412642569,-500.0,0.00016438,2]
[399480139,1766412642579,-500.0,0.00016438,2]
[399480140,1766412642590,-500.0,0.00016438,2]
[399480141,1766412642600,-500.0,0.00016438,2]
[399480142,1766412642611,-500.0,0.00016438,2]
[399480143,1766412642623,-500.0,0.00016438,2]
[399480144,1766412642633,-500.0,0.00016438,2]
[399480145,1766412642644,-500.0,0.00016438,2]
[399480146,1766412642655,-500.0,0.00016438,2]
[399480147,1766412642666,-637.86348898,0.00016438,2]
[399480148,1766412642677,-500.0,0.00016438,2]
[399480149,1766412642692,-500.0,0.00016438,2]
[399480150,1766412642703,-500.0,0.00016438,2]
[399480151,1766412642715,-500.0,0.00016438,2]
[399480152,1766412642729,-500.0,0.00016438,2]
[399480153,1766412642740,-500.0,0.00016438,2]
[399480154,1766412642751,-500.0,0.00016438,2]
[399480155,1766412642764,-225.92,0.00016438,2]
[399480156,1766412642776,-9668.25,0.00016438,2]
[399480157,1766412642787,-800.0,0.00016438,2]
[399480158,1766412642798,-759.6,0.0001647,2]
[399480159,1766412642808,-1000.0,0.000166,2]
[399480160,1766412642819,-174.369,0.00016657,2]
[399480161,1766412642830,-850.456,0.00016657,2]
[399480162,1766412642841,-1189.96780094,0.0001666,2]
[399480163,1766412642860,-481.25,0.00016712,2]
[399480164,1766412642873,-481.25,0.00016712,2]
[399480165,1766412642884,-969.65,0.00016712,2]
[399480166,1766412642894,-481.25,0.00016712,2]
[399480167,1766412642905,-209.40437684,0.00016752,2]
[399480168,1766412642917,-574.12855637,0.00016788,2]
[399480169,1766412642928,-200.0,0.00016788,2]
[399480170,1766412642938,-200.0,0.00016788,2]
[399480171,1766412642949,-213.14631305,0.00016788,2]
[399480172,1766412642960,-500.0,0.00016788,2]
[399480173,1766412642971,-200.0,0.00016864,2]
[399480174,1766412642982,-1177.65810365,0.00016899,5]
[399480175,1766412642992,-1000.0,0.000169,2]
[399480176,1766412643003,-167.71,0.000169,2]
[399480177,1766412643016,-1000.0,0.000169,2]
[399480178,1766412643028,-500.0,0.00016973,2]
[399480179,1766412643041,-500.0,0.00016973,2]
[399480180,1766412643053,-500.0,0.00016973,2]
[399480181,1766412643064,-500.0,0.00016973,2]
[399480182,1766412643075,-500.0,0.00016973,2]
[399480183,1766412643087,-500.0,0.00016973,2]
[399480184,1766412643098,-500.0,0.00016973,2]
[399480185,1766412643108,-500.0,0.00016973,2]
[399480186,1766412643120,-500.0,0.00016973,2]
[399480187,1766412643131,-500.0,0.00016973,2]
[399480188,1766412643142,-500.0,0.00016973,2]
[399480189,1766412643153,-500.0,0.00016973,2]
[399480190,1766412643163,-500.0,0.00016973,2]
[399480191,1766412643174,-500.0,0.00016973,2]
[399480192,1766412643185,-500.0,0.00016973,2]
[399480193,1766412643196,-500.0,0.00016973,2]
[399480194,1766412643207,-500.0,0.00016973,2]
[399480195,1766412643217,-500.0,0.00016973,2]
[399480196,1766412643228,-500.0,0.00016973,2]
[399480197,1766412643238,-500.0,0.00016973,2]
[399480198,1766412643249,-500.0,0.00016973,2]
[399480199,1766412643259,-500.0,0.00016973,2]
[399480200,1766412643273,-500.0,0.00016973,2]
[399480201,1766412643284,-500.0,0.00016973,2]
[399480202,1766412643294,-500.0,0.00016973,2]
[399480203,1766412643304,-500.0,0.00016973,2]
[399480204,1766412643315,-500.0,0.00016973,2]
[399480205,1766412643326,-220.3394429,0.00016973,2]
[399480206,1766412643336,-500.0,0.00016973,2]
[399480207,1766412643347,-500.0,0.00016973,2]
[399480208,1766412643357,-500.0,0.00016973,2]
[399480209,1766412643367,-500.0,0.00016973,2]
[399480210,1766412643378,-500.0,0.00016973,2]
[399480211,1766412643389,-575.25123354,0.00016973,2]
[399480212,1766412643400,-500.0,0.00016973,2]
[399480213,1766412643411,-500.0,0.00016973,2]
[399480214,1766412643421,-500.0,0.00016973,2]
[399480215,1766412643433,-500.0,0.00016973,2]
[399480216,1766412643443,-500.0,0.00016973,2]
[399480217,1766412643454,-566.4005916,0.00016973,2]
[399480218,1766412643465,-500.0,0.00016973,2]
[399480219,1766412643476,-500.0,0.00016973,2]
[399480220,1766412643487,-500.0,0.00016973,2]
[399480221,1766412643499,-500.0,0.00016973,2]
[399480222,1766412643510,-500.0,0.00016973,2]
[399480223,1766412643521,-500.0,0.00016973,2]
[399480224,1766412643531,-157.68600299,0.00016999,2]
[399480225,1766412643542,-89814.34686664,0.00017,2]
[399480230,1766412644532,-4809.96,0.00015582,2]
[399480231,1766412644542,-14619.69,0.00017,2]
[399480232,1766412644578,-151.0,0.00015923,2]
[399480233,1766412644589,-8969.91694568,0.00017,2]
[399480234,1766412644602,-288.43718802,0.00017,2]
[399480235,1766412644615,-4211.56281198,0.00017,2]
[399480236,1766412644632,-1351.065,0.00017,2]
[399480237,1766412644650,-10666.38847742,0.00017,2]
[399480238,1766412644663,-3389.19645253,0.00017,2]
[399480239,1766412644697,-9155.84279121,0.00017,2]
[399480240,1766412644951,-663.24937258,0.0001621,2]
[399480241,1766412644971,-534.75062742,0.0001621,2]
[399480242,1766412644983,-164.48,0.0001644,2]
[399480243,1766412644994,-164.48,0.0001699,2]
[399480244,1766412645005,-148.97396584,0.00017,2]
[399480245,1766412645058,-447.27153168,0.00016712,2]
[399480246,1766412645081,-33.97846832,0.00016712,2]
[399480247,1766412645092,-250.14279309,0.00017,2]
[399480250,1766413502861,8000.0,0.000226,120]
[399480251,1766413514854,8000.0,0.000226,120]
[399480252,1766413529914,4079.0,0.000226,120]
[399480253,1766413595642,-150.02,0.00042673,30]
[399480254,1766413595670,-150.02,0.00042673,30]
[399480255,1766413595698,-1000.0,0.00042673,30]
[399480256,1766413595726,-150.02,0.00042673,30]
[399480257,1766413595754,-150.02,0.00042673,30]
[399480258,1766413595782,-2280.93201584,0.00042673,30]
[399480259,1766413595808,-1141.10899239,0.00042673,30]
[399480260,1766413595834,-3132.86331969,0.00042673,30]
[399480261,1766413595861,-150.02,0.00042673,30]
[399480262,1766413595888,-150.02,0.00042673,30]
[399480263,1766413595917,-150.02,0.00042673,30]
[399480264,1766413595959,-150.02,0.00042673,30]
[399480265,1766413596346,-150.02,0.00042673,30]
[399480266,1766413596378,-150.02,0.00042673,30]
[399480267,1766413596407,-150.02,0.00042673,30]
[399480268,1766413596436,-1000.0,0.00042673,30]
[399480269,1766413596466,-150.02,0.00042673,30]
[399480270,1766413596495,-150.02,0.00042673,30]
[399480271,1766413596523,-150.02,0.00042673,30]
[399480272,1766413596553,-1000.0,0.00042673,30]
[399480273,1766413596580,-150.02,0.00042673,30]
[399480274,1766413596613,-150.02,0.00042673,30]
[399480275,1766413596642,-150.02,0.00042673,30]
[399480276,1766413596672,-150.02,0.00042673,30]
[399480277,1766413596702,-150.02,0.00042673,30]
[399480278,1766413596730,-1000.0,0.00042673,30]
[399480279,1766413596758,-150.01,0.00042673,30]
[399480280,1766413596786,-150.02,0.00042673,30]
[399480281,1766413596815,-1000.0,0.00042673,30]
[399480282,1766413596842,-1000.0,0.00042673,30]
[399480283,1766413596874,-1000.0,0.00042673,30]
[399480284,1766413596903,-150.02,0.00042673,30]
[399480285,1766413596935,-150.02,0.00042673,30]
[399480286,1766413596964,-150.02,0.00042673,30]
[399480287,1766413596995,-150.02,0.00042673,30]
[399480288,1766413597025,-1458.29721771,0.00042673,30]
[399480289,1766413597055,-150.02,0.00042673,30]
[399480290,1766413597086,-3545.41823418,0.00042673,30]
[399480291,1766413597116,-150.02,0.00042673,30]
[399480292,1766413597147,-150.02,0.00042673,30]
[399480293,1766413597176,-1000.0,0.00042673,30]
[399480294,1766413597206,-150.02,0.00042673,30]
[399480295,1766413597235,-1000.0,0.00042673,30]
[399480296,1766413597263,-1000.0,0.00042673,30]
[399480297,1766413597291,-1000.0,0.00042673,30]
[399480298,1766413597319,-150.02,0.00042673,30]
[399480299,1766413597348,-1000.0,0.00042673,30]
[399480300,1766413597378,-800.0,0.00042673,30]
[399480301,1766413597408,-150.02,0.00042673,30]
[399480302,1766413597438,-150.02,0.00042673,30]
[399480303,1766413597466,-150.02,0.00042673,30]
[399480304,1766413597494,-150.02,0.00042673,30]
[399480305,1766413597524,-150.02,0.00042673,30]
[399480306,1766413597553,-150.02,0.00042673,30]
[399480307,1766413597582,-150.02,0.00042673,30]
[399480308,1766413597611,-150.02,0.00042673,30]
[399480309,1766413597639,-150.02,0.00042673,30]
[399480310,1766413597667,-150.02,0.00042673,30]
[399480311,1766413597695,-539.60560243,0.00042673,30]
[399480312,1766413597723,-150.02,0.00042673,30]
[399480313,1766413597751,-403.45989697,0.00042673,30]
[399480314,1766413597780,-150.02,0.00042673,30]
[399480315,1766413597808,-150.02,0.00042673,30]
[399480316,1766413597836,-925.41323584,0.00042673,30]
[399480317,1766413597865,-1181.18440364,0.00042673,30]
[399480318,1766413597895,-150.02,0.00042673,30]
[399480319,1766413597926,-150.02,0.00042673,30]
[399480320,1766413597959,-155.77714131,0.00042673,30]
[399480321,1766413597990,-150.02,0.00042673,30]
[399480322,1766413598020,-150.02,0.00042673,30]
[399480323,1766413598049,-2134.23030312,0.00042673,30]
[399480324,1766413598078,-150.02,0.00042673,30]
[399480325,1766413598109,-780.75168946,0.00042673,30]
[399480326,1766413598140,-150.02,0.00042673,30]
[399480327,1766413598171,-533.40814973,0.00042673,30]
[399480328,1766413598202,-348.58680183,0.00042673,30]
[399480329,1766413598231,-150.02,0.00042673,30]
[399480330,1766413598260,-150.02,0.00042673,30]
[399480331,1766413598290,-150.02,0.00042673,30]
[399480332,1766413598319,-150.02,0.00042673,30]
[399480333,1766413598350,-150.02,0.00042673,30]
[399480334,1766413598380,-150.02,0.00042673,30]
[399480335,1766413598408,-2098.93317419,0.00042673,30]
[399480336,1766413598438,-1487.91642652,0.00042673,30]
[399480337,1766413598466,-150.02,0.00042673,30]
[399480338,1766413598496,-150.02,0.00042673,30]
[399480339,1766413598524,-178.92367844,0.00042673,30]
[399480340,1766413598554,-150.02,0.00042673,30]
[399480341,1766413598583,-906.23222359,0.00042673,30]
[399480342,1766413598611,-383.30376433,0.00042673,30]
[399480343,1766413598640,-150.02,0.00042673,30]
[399480344,1766413598668,-150.02,0.00042673,30]
[399480345,1766413598696,-915.08913782,0.00042673,30]
[399480346,1766413598724,-150.02,0.00042673,30]
[399480347,1766413598752,-150.02,0.00042673,30]
[399480348,1766413598781,-150.02,0.00042673,30]
[399480349,1766413598808,-2897.88291187,0.00042673,30]
[399480350,1766413598836,-150.02,0.00042673,30]
[399480351,1766413598865,-150.02,0.00042673,30]
[399480352,1766413598895,-150.02,0.00042673,30]
[399480353,1766413598922,-985.68082619,0.00042673,30]
[399480354,1766413598954,-150.02,0.00042673,30]
[399480355,1766413598984,-150.02,0.00042673,30]
[399480356,1766413599014,-150.02,0.00042673,30]
[399480357,1766413599275,-150.02,0.00042673,30]
[399480358,1766413599304,-220.59603467,0.00042673,30]
[399480359,1766413599332,-1018.58506917,0.00042673,30]
[399480360,1766413599361,-280.02,0.00042673,30]
[399480361,1766413599390,-150.02,0.00042673,30]
[399480362,1766413599418,-372.15021924,0.00042673,30]
[399480363,1766413599446,-150.02,0.00042673,30]
[399480364,1766413599474,-150.02,0.00042673,30]
[399480365,1766413599502,-150.02,0.00042673,30]
[399480366,1766413599529,-150.02,0.00042673,30]
[399480367,1766413599557,-150.02,0.00042673,30]
[399480368,1766413599584,-150.02,0.00042673,30]
[399480369,1766413599612,-150.02,0.00042673,30]
[399480370,1766413599640,-200.30756048,0.00042673,30]
[399480371,1766413599669,-150.02,0.00042673,30]
[399480372,1766413599697,-150.02,0.00042673,30]
[399480373,1766413599726,-150.02,0.00042673,30]
[399480374,1766413599754,-159.06480175,0.00042673,30]
[399480375,1766413599781,-150.02,0.00042673,30]
[399480376,1766413599807,-150.02,0.00042673,30]
[399480377,1766413599833,-150.02,0.00042673,30]
[399480378,1766413599860,-150.02,0.00042673,30]
[399480379,1766413599888,-150.02,0.00042673,30]
[399480380,1766413599915,-150.02,0.00042673,30]
[399480381,1766413599945,-150.02,0.00042673,30]
[399480382,1766413599975,-150.02,0.00042673,30]
[399480383,1766413600003,-150.02,0.00042673,30]
[399480384,1766413600036,-150.02,0.00042673,30]
[399480385,1766413600065,-150.02,0.00042673,30]
[399480386,1766413600094,-1072.1819882,0.00042673,30]
[399480387,1766413600122,-150.02,0.00042673,30]
[399480388,1766413600151,-150.02,0.00042673,30]
[399480389,1766413600179,-150.02,0.00042673,30]
[399480390,1766413600207,-150.02,0.00042673,30]
[399480391,1766413600236,-150.02,0.00042673,30]
[399480392,1766413600265,-150.02,0.00042673,30]
[399480393,1766413600293,-150.02,0.00042673,30]
[399480394,1766413600322,-150.02,0.00042673,30]
[399480395,1766413600350,-150.02,0.00042673,30]
[399480396,1766413600379,-150.02,0.00042673,30]
[399480397,1766413600409,-150.02,0.00042673,30]
[399480398,1766413600437,-150.02,0.00042673,30]
[399480399,1766413600466,-150.02,0.00042673,30]
[399480400,1766413600494,-150.02,0.00042673,30]
[399480401,1766413600521,-150.02,0.00042673,30]
[399480402,1766413600550,-150.02,0.00042673,30]
[399480403,1766413600577,-269.70161138,0.00042673,30]
[399480404,1766413600607,-997.0,0.00042673,30]
[399480405,1766413600636,-214.21288044,0.00042673,30]
[399480406,1766413600665,-261.01505237,0.00042673,30]
[399480407,1766413600694,-936.27959444,0.00042673,30]
[399480408,1766413600724,-150.02,0.00042673,30]
[399480409,1766413600753,-150.02,0.00042673,30]
[399480410,1766413600781,-150.02,0.00042673,30]
[399480411,1766413600809,-150.02,0.00042673,30]
[399480412,1766413600838,-150.02,0.00042673,30]
[399480413,1766413600867,-150.02,0.00042673,30]
[399480414,1766413600896,-150.02,0.00042673,30]
[399480415,1766413600926,-150.02,0.00042673,30]
[399480416,1766413600962,-261.25653406,0.00042673,30]
[399480417,1766413600992,-239.28316034,0.00042673,30]
[399480418,1766413601022,-283.09831172,0.00042673,30]
[399480419,1766413601052,-2122.11922797,0.00042673,30]
[399480420,1766413601082,-216.03935875,0.00042673,31]
[399480421,1766413601111,-1883.12391128,0.00042673,30]
[399480422,1766413601140,-1566.55963902,0.00042673,30]
[399480423,1766413601169,-2505.1654504,0.00042673,30]
[399480424,1766413601198,-542.48961161,0.00042673,30]
[399480425,1766413601228,-150.02,0.00042673,30]
[399480426,1766413601257,-150.02,0.00042673,30]
[399480427,1766413601287,-1098.57477307,0.00042673,30]
[399480428,1766413601315,-1623.62529614,0.00042673,30]
[399480429,1766413601344,-167.04098807,0.00042673,30]
[399480430,1766413601373,-2077.52825869,0.00042673,30]
[399480431,1766413601401,-1245.13226381,0.00042673,30]
[399480432,1766413601432,-477.50678579,0.00042673,30]
[399480433,1766413601469,-491.75002539,0.00042673,30]
[399480434,1766413601503,-1524.21334328,0.00042673,30]
[399480435,1766413601532,-197.13657585,0.00042673,58]
[399480436,1766413601562,-2038.66272116,0.00042673,30]
[399480437,1766413601591,-1877.58793877,0.00042673,30]
[399480438,1766413601618,-241.55016551,0.00042673,30]
[399480439,1766413601646,-2523.43098688,0.00042673,31]
[399480440,1766413601675,-150.02,0.00042673,30]
[399480441,1766413601705,-150.02,0.00042673,30]
[399480442,1766413601735,-150.02,0.00042673,30]
[399480443,1766413601765,-150.02,0.00042673,30]
[399480444,1766413601794,-150.02,0.00042673,30]
[399480445,1766413601822,-150.02,0.00042673,30]
[399480446,1766413601850,-150.02,0.00042673,30]
[399480447,1766413601883,-150.02,0.00042673,30]
[399480448,1766413601913,-150.02,0.00042673,30]
[399480449,1766413601949,-150.02,0.00042673,30]
[399480450,1766413601979,-150.02,0.00042673,30]
[399480451,1766413602009,-150.02,0.00042673,30]
[399480452,1766413602299,-150.02,0.00042673,30]
[399480453,1766413602328,-150.02,0.00042673,30]
[399480454,1766413602357,-150.02,0.00042673,30]
[399480455,1766413602387,-150.02,0.00042673,30]
[399480456,1766413602415,-150.02,0.00042673,30]
[399480457,1766413602444,-150.02,0.00042673,30]
[399480458,1766413602473,-150.02,0.00042673,30]
[399480459,1766413602502,-150.02,0.00042673,30]
[399480460,1766413602529,-150.02,0.00042673,30]
[399480461,1766413602557,-150.02,0.00042673,30]
[399480462,1766413602585,-150.02,0.00042673,30]
[399480463,1766413602613,-282.02,0.00042673,30]
[399480464,1766413602640,-2159.00848515,0.00042673,30]
[399480465,1766413602668,-644.4199742,0.00042673,30]
[399480466,1766413602695,-1026.0306561,0.00042673,30]